Cogmind - Beta 11.1 @@@ ROGUE MODE // 2022.05.20 @ 22:57:23 Player: RX86 Result: Destroyed by D-53 Grenadier with Mini Grenade Launcher Performance ------------- Evolutions (0) 0 Regions Visited (2) 400 Robots Destroyed (7) 35 Value Destroyed (120) 120 Prototype IDs (0) 0 Alien Tech Used (0) 0 Bonus (-30) -30 TOTAL SCORE: 525 Bonus ------- Friendly Fire -30 Cogmind --------- Core Integrity 0/250 Matter 285/300 Energy 190/250 System Corruption 1% Temperature Cool (1) Movement Treading (160) Location -10/Mines Parts ------- > --- POWER (1) -------- Ion Engine > --- PROPULSION (2) --- Light Treads > --- UTILITY (2) ------ Medium Storage Unit Transport Network Coupler > --- WEAPON (2) ------- (None) > --- INVENTORY (10) --- Light Ion Engine Weight Redist. System Light Assault Rifle Light Assault Rifle Light Assault Rifle Grenade Launcher Peak State ------------ > --- POWER ------------ Light Ion Engine > --- PROPULSION ------- Aluminum Leg Aluminum Leg > --- UTILITY ---------- Small Storage Unit Weight Redist. System > --- WEAPON ----------- Light Assault Rifle Light Assault Rifle > --- INVENTORY -------- Ion Engine Light Ion Engine Light Treads Light Treads Heat Sink High-capacity Storage Unit Light Assault Rifle [Rating: 8] Favorites ----------- Power Light Ion Engine Engine Light Ion Engine Propulsion Aluminum Leg Treads Light Treads Leg Aluminum Leg Utility Transport Network Coupler Device Weight Redist. System Storage Medium Storage Unit Processor Transport Network Coupler Weapon Light Assault Rifle Ballistic Gun Light Assault Rifle Build | -11 -10 -10 ------- Run | Scr Mat Min Slots Evolved . | . . . Power . | . . . Propulsion . | . . . Utility . | . . . Weapon . | . . . Parts Attached 17 | 7 7 3 Power 2 | 1 . 1 Engine 2 | 1 . 1 Core . | . . . Reactor . | . . . Propulsion 8 | 2 4 2 Treads 4 | . 2 2 Leg 4 | 2 2 . Wheel . | . . . Hover . | . . . Flight . | . . . Utility 4 | 1 3 . Device 1 | . 1 . Storage 2 | 1 1 . Processor 1 | . 1 . Hackware . | . . . Protection . | . . . Artifact . | . . . Weapon 3 | 3 . . Energy Gun . | . . . Energy Cannon . | . . . Ballistic Gun 3 | 3 . . Ballistic Cannon . | . . . Launcher . | . . . Special Weapon . | . . . Impact Weapon . | . . . Slashing Weapon . | . . . Piercing Weapon . | . . . Special Melee Weapon . | . . . Unidentified Prototypes . | . . . Parts Lost 6 | . . 6 Power 1 | . . 1 Propulsion 3 | . . 3 Utility . | . . . Weapon 2 | . . 2 Highest Loss Streak 6 | . . 6 To Critical Strikes . | . . . Average Slot Usage (%) 95 | . 95 95 Engine 14 | . 14 14 Treads 1 | . 1 2 Leg 26 | . 26 25 Storage 14 | . 14 14 Processor 10 | . 9 14 Ballistic Gun 27 | . 28 24 Naked Turns . | . . . Heaviest Build 16 | 10 15 16 Greatest Support 40 | 20 40 40 Greatest Overweight (x) 1 | 1 . 1 Average Overweight (x) . | . . . Largest Inventory Capacity 10 | 8 10 10 Average Capacity 9 | 7 8 10 Most Carried 9 | 5 9 9 Average Carried 7 | 3 7 8 Final Capacity 10 | 8 10 10 Final Carried 9 | 4 9 6 Class Distribution -------------------- 100% | Mutant Dominant Class ---------------- Mutant | -10/Materials Mutant | -10/Mines Resources | -11 -10 -10 ----------- Run | Scr Mat Min Matter Collected 384 | 214 170 . Remotely . | . . . Salvage Created 272 | . 272 . Parts 18 | . 18 . Haulers Intercepted 2 | . 2 . Recyclers Shooed . | . . . Parts Field Recycled . | . . . Retrieved Matter . | . . . Parts Self-Destructed . | . . . Prevented . | . . . Kills | -11 -10 -10 ------- Run | Scr Mat Min Combat Hostiles Destroyed 2 | . 2 . Guns 2 | . 2 . Classes Destroyed 4 | . 4 . Hauler 2 | . 2 . Operator 1 | . 1 . Watcher 2 | . 2 . Grunt 2 | . 2 . Best Kill Streak 2 | . 2 . Combat Bots Only 2 | . 2 . Max Kills in Single Turn 1 | . 1 . Gunslinging . | . . . Exploded . | . . . Melee . | . . . Uniques/NPCs Destroyed . | . . . Combat | -11 -10 -10 -------- Run | Scr Mat Min Damage Taken 1034 | . 172 862 Core 257 | . 32 225 Absorbed by Shields . | . . . Core Remaining (%) 100 | 100 . . Volleys Fired 23 | . 22 1 Largest 2 | . 2 1 Hottest 40 | . 40 20 Shots Fired 45 | . 44 1 Gun 45 | . 44 1 Cannon . | . . . Launcher . | . . . Special . | . . . Kinetic 45 | . 44 1 Thermal . | . . . Explosive . | . . . Electromagnetic . | . . . Robot Hit Streak 10 | . 10 . Robot Miss Streak 5 | . 5 1 Penetration Max . | . . . Secondary Targets . | . . . Shots Hit Robots 28 | . 28 . Core Hits 14 | . 14 . Critical Kills . | . . . Critical Parts Destroyed . | . . . Critical Strikes . | . . . Melee Attacks . | . . . Impact . | . . . Slashing . | . . . Piercing . | . . . Sneak Attacks . | . . . Combat Hostiles . | . . . Follow-up Attacks . | . . . Damage Inflicted 253 | . 253 . Guns 253 | . 253 . Cannons . | . . . Explosions . | . . . Melee . | . . . Ramming . | . . . Kinetic 253 | . 253 . Thermal . | . . . Explosive . | . . . Electromagnetic . | . . . Impact . | . . . Slashing . | . . . Piercing . | . . . Highest Corruption 1 | . 1 1 Average Corruption 1 | . 1 1 Corruption Purged . | . . . Corruption Blocked . | . . . Effects 5 | . 2 3 Message Errors 1 | . 1 . Matter Fused 1 | . 1 . Heat Flow Errors 2 | . . 2 Energy Discharges 1 | . . 1 Overload Shots . | . . . Overflow Damage . | . . . Projectiles . | . . . Explosions . | . . . Melee . | . . . Knockbacks . | . . . Impact . | . . . Kinetic . | . . . Secondary . | . . . Self-Inflicted Damage . | . . . Shots . | . . . Rammed . | . . . Targets Rammed . | . . . Kicked . | . . . Crushed . | . . . Highest Temperature 169 | . 12 169 Average Temperature 52 | . 7 74 Received Heat Transfer 36 | . 36 . Siege Activations . | . . . Robots Corrupted . | . . . Combat Hostiles . | . . . Parts Fried . | . . . Impact Corruptions . | . . . Robots Melted . | . . . Combat Hostiles . | . . . Parts Melted . | . . . Heat Transferred . | . . . Parts Sabotaged . | . . . Parts Stolen . | . . . Parts Stripped . | . . . Power Chain Reactions . | . . . Missiles Intercepted . | . . . Alert | -11 -10 -10 ------- Run | Scr Mat Min Peak Influence 56 | . 56 1 Initial 1 | . . 1 Average 13 | . 17 . Maximum Alert Level . | . . . Low Security (%) 100 | 100 100 100 Level 1 . | . . . Level 2 . | . . . Level 3 . | . . . Level 4 . | . . . Level 5 . | . . . High Security . | . . . Max Security . | . . . Squads Dispatched 1 | . 1 . Investigation . | . . . Extermination . | . . . Reinforcement 1 | . 1 . Assault . | . . . Garrison . | . . . Intercept . | . . . Searches Triggered . | . . . Construction Impeded . | . . . Haulers Reinforced . | . . . Active Scanning Responses . | . . . Cargo Convoy Interrupts . | . . . Stealth | -11 -10 -10 --------- Run | Scr Mat Min Distress Signals 3 | . 3 . Communications Jammed . | . . . Distress Signals . | . . . Times Spotted 19 | . 6 13 Peak Tracking Total 14 | . 3 14 Tactical Retreats 1 | . 1 . Traps | -11 -10 -10 ------- Run | Scr Mat Min Traps Triggered 1 | . 1 . Indirectly . | . . . Trap Hack Attempts . | . . . Triggered . | . . . Disarmed . | . . . Reprogrammed . | . . . Reused . | . . . Traps Extracted . | . . . Installed . | . . . Triggered . | . . . Machines | -11 -10 -10 ---------- Run | Scr Mat Min Machines Disabled . | . . . Max in Single Turn . | . . . Machines Sabotaged . | . . . Garrisons Compromised . | . . . Overloaded Fab Kills . | . . . Hacking | -11 -10 -10 --------- Run | Scr Mat Min Machines Accessed 5 | . 5 . Terminals 4 | . 4 . Fabricators . | . . . Repair Stations 1 | . 1 . Recycling Units . | . . . Scanalyzers . | . . . Garrison Access . | . . . Total Hacks 13 | . 13 . Successful 10 | . 10 . Failed 3 | . 3 . Catastrophic . | . . . Database Lockouts . | . . . Manual 12 | . 12 . Terminals 12 | . 12 . Fabricators . | . . . Repair Stations 1 | . 1 . Recycling Units . | . . . Scanalyzers . | . . . Garrison Access . | . . . Terminal Hacks 5 | . 5 . Record 1 | . 1 . Terminal Index 1 | . 1 . Unreport Threat 3 | . 3 . Fabricator Hacks . | . . . Repair Station Hacks . | . . . Recycling Unit Hacks . | . . . Scanalyzer . | . . . Garrison Access Hacks . | . . . Unauthorized Hacks 5 | . 5 . Terminals 4 | . 4 . Botnet 3 | . 3 . Operators 1 | . 1 . Fabricators . | . . . Repair Stations 1 | . 1 . Mechanics 1 | . 1 . Recycling Units . | . . . Scanalyzers . | . . . Garrison Access . | . . . Data Cores Recovered . | . . . Used . | . . . Hacking Detections 1 | . 1 . Full Trace Events . | . . . Feedback Events . | . . . Feedback Blocked . | . . . Robot Schematics Acquired . | . . . Robots Built . | . . . Authchips . | . . . Time . | . . . Total Robot Build Rating . | . . . Part Schematics Acquired . | . . . Parts Built . | . . . Authchips . | . . . Time . | . . . Total Part Build Rating . | . . . Parts Repaired . | . . . Time . | . . . Parts Recycled . | . . . Recycled Matter . | . . . Retrieved Matter . | . . . Retrieved Components . | . . . Parts Scanalyzed . | . . . Part Schematics Acquired . | . . . Parts Damaged . | . . . Bothacking | -11 -10 -10 ------------ Run | Scr Mat Min Used RIF Installer . | . . . Robots Hacked . | . . . Non-combat . | . . . Combat . | . . . Robot Hacks Applied . | . . . Relay Couplers Released . | . . . Fabnet Peak Effective % . | . . . Robots Rewired . | . . . Allies Hacked . | . . . Hacks Repelled . | . . . Allies | -11 -10 -10 -------- Run | Scr Mat Min Total Allies . | . . . Largest Group . | . . . Highest-Rated Group . | . . . Highest-Rated Ally . | . . . Total Orders . | . . . Ally Attacks . | . . . Total Damage . | . . . Kills . | . . . Allies Corrupted . | . . . Allies Melted . | . . . Intel | -11 -10 -10 ------- Run | Scr Mat Min Robot Analysis Total . | . . . Derelict Logs Recovered . | . . . Drone Launches . | . . . Drone Recoveries . | . . . Exploration | -11 -10 -10 ------------- Run | Scr Mat Min Turns Passed 1002 | 61 745 196 Spaces Moved 745 | 40 548 157 Core 4 | 4 . . Treads 13 | . 4 9 Legs 728 | 36 544 148 Wheels . | . . . Hover . | . . . Flight . | . . . Fastest Speed 50 | 50 120 120 Average Speed 120 | 116 120 122 Slowest Speed 190 | 120 160 190 Overloaded Moves . | . . . Propulsion Burnouts . | . . . Robots Hopped . | . . . Cave-ins Triggered . | . . . Exploration Rate (%) 44 | 4 90 39 Regions Visited 2 Branch Regions 1 Pre-discovered Areas 1 | . . 1 Known Exits Taken . | . . . Unknown Exits Taken 2 | 1 1 . Scrap Searched . | . . . Spaces Dug . | . . . Terrain Destroyed . | . . . Melee . | . . . Projectile . | . . . AOE . | . . . Terrain Rammed . | . . . Walls Destroyed . | . . . Machines Disabled . | . . . Actions | -11 -10 -10 --------- Run | Scr Mat Min Total 809 | 51 597 161 Wait 11 | . 11 . Move 743 | 39 547 157 Hop . | . . . Pick Up 12 | 5 7 . Fast Attach 6 | 5 1 . Attach 4 | 1 . 3 Detach . | . . . Swap 7 | 1 6 . Drop 3 | . 3 . Fire 23 | . 22 1 Melee . | . . . Ram . | . . . Kick . | . . . Crush . | . . . Escape Stasis . | . . . Rewire . | . . . Trap . | . . . Miscellaneous . | . . . Route ------- -11/Scrapyard -10/Materials (discovered 4 exits: [*Mat x3] / [*Min]) -10/Mines (discovered 1 exit: [*Mat]) History --------- Turn | Location | Event 15 | -11/Scrapyard | Discovered new exit (range 16) 62 | -11/Scrapyard | Entered Materials 251 | -10/Materials | Met 8R-AWN 253 | -10/Materials | Discovered new exit (range 14) 274 | -10/Materials | Attacked by 8R-AWN 316 | -10/Materials | Build established: Mutant 487 | -10/Materials | Discovered new exit (range 14) 509 | -10/Materials | Discovered new exit (range 16) 687 | -10/Materials | Discovered new exit (range 16) 807 | -10/Materials | Entered Mines 853 | -10/Mines | Met a Derelict bent on vengeance 867 | -10/Mines | Learned location of Storage (-8) 921 | -10/Mines | Discovered new exit (range 7) 961 | -10/Mines | Assembled infested the area 966 | -10/Mines | Assisted by a Guerilla fighting off Assembled 991 | -10/Mines | Core integrity fell below 50% 1001 | -10/Mines | Core integrity fell below 20% 1003 | -10/Mines | Destroyed by D-53 Grenadier with Mini Grenade Launcher Last Messages --------------- 00978_ as-33120 destroyed. 00978_ as-27350 destroyed. 00980_ as-95030 destroyed. 00982_ T-07 Excavator destroyed. 00984_ Lgt. Ion Engine destroyed. 00986_ Aluminum Leg destroyed. 00987_ DL-71N(g): "VENGEANCE!" 00987_ DL-71N(g) destroyed. 00988_ Lgt. Assault Rifle destroyed. 00988_ Aluminum Leg destroyed. 00988_ T-07 Excavator destroyed. 00989_ The unstable cave ceiling collapses. 00999_ U-05 Engineer lays Concrete. 01000_ The unstable cave ceiling collapses. 01001_ U-05 Engineer lays Concrete. 01001_ K-01 Serf destroyed. 01002_ U-05 Engineer lays Concrete. 01003_ The unstable cave ceiling collapses. 01003_ U-05 Engineer lays Concrete. 01003_ Lgt. Treads destroyed. Map ----- +----------------------------------------------------+ | ????????## ### ##??????????? ???????????? | | ????????# #??????????? ???????????? | | ??????????? =% #??????????? ???????????? | | ??????????????????# #?????????? #??????????? | | ??????????????????## ##????????# ??????????? | | ???????????????????? ##???????# #??????????? | | ???????????????????? #???????# #??????????? | | ????????????????????# #???????# #??????????? | | ????????????????????# ###?????# #####??????? | | ?????????????????????# ####### ## ???????? | | ??????????????????????# ## ## ## #???????? | | ??????????????????????# # " # ## #???????? | | ??????????????????????# %" #???????? | | ??????????????????????# u ##### #####???? | | ??????????????????????# # #### #???? | | ??????????????????????# ## #???? | | ??????????????????????## # # #???? | | ???????????????????????###### d # < #???? | | ????????????????????????????# d # #???? | | ???????????????????????????## # #???? | | ???????????????????????##### ##### ###???? | | ???????????????????????# #??# #?????? | | ??????????????????????## % #??# #?????? | | ?????????????????????## #??# ####### | | ?????????????????????# $ # ##??# | | ?????????????????????# @ ##???######### | | ????????????????????# #?#######???# | | ????????????????????# # ##### ##??# | | ????????????????????# ####??# #??# | | ????????????????????## # ##?????# #### | | ?????????????????????# ########?????## | | ????????????????????# #?????????????# | | ???????????????????# ??????????????# ## | | ??????????????????# ?##???????????# #? | | ????????????????? ??? #?????????## ##? | | ?????????????###?### ??? #??????### ####?? | | ????????????## ##??##???? #????### ##????? | | ????????????# ##??????? #???## ##?????? | | ????????????# #??????? #???# ##??????? | | ????????????# #??????? #???# ##???????? | | ????????????## ##??????# #???## ####????????? | | ?????????????## ###????# #????## ##???????????? | | ??????????????## ###### ####### ##???????????# | | ???????????????## #???????????# | | ????????????????# ############ #???????????# | | ????????????????## ##??????????## ##???????????# | | ?????????????????####????????????####????????????# | | ?????????????????????????????????????????????????? | | ?????????????????????????????????????????????????? | | ?????????????????????????????????????????????????? | +----------------------------------------------------+ Best States ------------- Heat Dissipation 25 Energy Generation 10 Energy Capacity 250 Matter Stores 300 Matter Capacity 300 Sight Range 16 Terrain Scan Density 10 Additional Mass Support 6 Evasion (%) 55 Recoil Reduction 2 Item Schematics ----------------- None Robot Schematics ------------------ None Fabricated ------------ Nothing Alien Tech Used ----------------- None Achievements -------------- None Challenges ------------ None Game ------ Seed FocalFieldInsulator Manual? 0 Play Time 00:14:08 Cumulative 58.7 hours Start 2022.05.20 @ 22:45:00 End 2022.05.20 @ 22:57:23 Sessions 1 Manual Loads 0 Difficulty Rogue Special Mode None Game No. 41 Rogue 39 Adventurer 0 Explorer 2 Win Type - Total 0 Types 0/0/0/0/0/0/0/0/0 Lore% 24 Gallery% 30 Achievement% 25 Wizard Run 0 Options --------- ASCII 0 Keyboard 0 Movement Numpad Keybinds 0 Fullscreen 1 Font 18/SmallcapsGlow Map View 76x50 Tactical HUD 1 Map Filters NONE Filters NONE Steam 1 RUN: 87363095-4d38-4783-b7c3-ea1859d53601